fUSD/lending_fUSD_20260504
["ID","MTS","AMOUNT","RATE_DAILY","PERIOD"]
[421571335,1777895432000,-207.69636846,0.00029372,2]
[421571333,1777895432000,-1054.78484446,0.00029319,2]
[421571334,1777895432000,-155.51,0.00029363,2]
[421571343,1777895432000,-500.0,0.00029372,2]
[421571344,1777895432000,-164527.3701798,0.00029373,2]
[421571339,1777895432000,-246.2463889,0.00029372,2]
[421571342,1777895432000,-256.55924982,0.00029372,2]
[421571332,1777895432000,-1376.3623715,0.00029319,2]
[421571315,1777895432000,-500.0,0.00027669,2]
[421571321,1777895432000,-150.0,0.00027838,7]
[421571322,1777895432000,-150.0,0.00027838,7]
[421571326,1777895432000,-238.64,0.00028049,2]
[421571329,1777895432000,-1043.58,0.00029091,2]
[421571323,1777895432000,-150.0,0.00027838,7]
[421571327,1777895432000,-290.4,0.00028267,2]
[421571328,1777895432000,-150.0,0.00028838,2]
[421571325,1777895432000,-150.00000082,0.00028,60]
[421571331,1777895432000,-400.0,0.00029285,2]
[421571330,1777895432000,-420.0,0.00029156,2]
[421571324,1777895432000,-513.93054312,0.00027973,2]
[421571371,1777895438000,-500.0,0.00029372,2]
[421571366,1777895438000,-500.0,0.00029372,2]
[421571372,1777895438000,-500.0,0.00029372,2]
[421571367,1777895438000,-500.0,0.00029372,2]
[421571363,1777895438000,-500.0,0.00029372,2]
[421571369,1777895438000,-500.0,0.00029372,2]
[421571370,1777895438000,-500.0,0.00029372,2]
[421571374,1777895438000,-500.0,0.00029372,2]
[421571368,1777895438000,-500.0,0.00029372,2]
[421571360,1777895438000,-500.0,0.00029372,2]
[421571364,1777895438000,-500.0,0.00029372,2]
[421571356,1777895438000,-500.0,0.00029372,2]
[421571359,1777895438000,-500.0,0.00029372,2]
[421571357,1777895438000,-500.0,0.00029372,2]
[421571355,1777895438000,-500.0,0.00029372,2]
[421571361,1777895438000,-500.0,0.00029372,2]
[421571362,1777895438000,-500.0,0.00029372,2]
[421571373,1777895438000,-276.55527509,0.00029372,2]
[421571365,1777895438000,-500.0,0.00029372,2]
[421571376,1777895438000,-500.0,0.00029372,2]
[421571358,1777895438000,-500.0,0.00029372,2]
[421571378,1777895438000,-500.0,0.00029372,2]
[421571397,1777895438000,-4056.1836179,0.000302,2]
[421571390,1777895438000,-310.52680661,0.0003,2]
[421571396,1777895438000,-788.45865194,0.000302,2]
[421571392,1777895438000,-443.46310017,0.00030119,2]
[421571391,1777895438000,-189.66355641,0.00030119,2]
[421571393,1777895438000,-204.33006192,0.0003013,2]
[421571394,1777895438000,-214.53947204,0.0003013,2]
[421571395,1777895438000,-1054.76352558,0.000302,2]
[421571375,1777895438000,-500.0,0.00029372,2]
[421571386,1777895438000,-88.31082096,0.0003,2]
[421571388,1777895438000,-1548.68937737,0.0003,2]
[421571387,1777895438000,-292.21850069,0.0003,2]
[421571385,1777895438000,-235.0250602,0.0003,2]
[421571382,1777895438000,-500.0,0.00029871,2]
[421571384,1777895438000,-240.21729325,0.0002999,2]
[421571383,1777895438000,-4738.71516346,0.000299,2]
[421571380,1777895438000,-238.64,0.00029419,2]
[421571381,1777895438000,-150.0,0.00029534,2]
[421571377,1777895438000,-500.0,0.00029372,2]
[421571379,1777895438000,-31114.33153767,0.00029373,2]
[421571389,1777895438000,-165.09483293,0.0003,2]
[421571412,1777895440000,-28.04713274,0.000306,11]
[421571411,1777895440000,-290.4,0.00030239,2]
[421571410,1777895440000,-9838.47933717,0.000302,2]
[421571409,1777895440000,-204.5796,0.00022253,2]
[421571417,1777895440000,-213.47426089,0.00030759,2]
[421571414,1777895440000,-400.0,0.000307,11]
[421571416,1777895440000,-204.81477819,0.00030739,2]
[421571415,1777895440000,-239.30529163,0.00030739,2]
[421571418,1777895440000,-325.47403664,0.00030759,2]
[421571413,1777895440000,-171.95286726,0.000306,11]
[421571440,1777895446000,-6307.12,0.00030838,7]
[421571439,1777895446000,-1575.57810049,0.00030838,7]
[421571436,1777895446000,-56.09714107,0.000308,11]
[421571438,1777895446000,-105.61741513,0.00030838,7]
[421571435,1777895446000,-515.83654691,0.00030759,2]
[421571437,1777895446000,-543.90285893,0.000308,11]
[421571449,1777896397000,-157.61884138,0.00013096,2]
[421571450,1777896524000,157.41,0.00025467,120]
[421571489,1777896632000,-842.01748172,0.00026837,2]
[421571486,1777896632000,-2726.67524848,0.00026837,2]
[421571505,1777896632000,-500.0,0.00027368,17]
[421571483,1777896632000,-150.0,0.00025657,2]
[421571487,1777896632000,-555.92102686,0.00026837,2]
[421571484,1777896632000,-158.25,0.00026193,2]
[421571481,1777896632000,-506.46,0.00025329,2]
[421571485,1777896632000,-151.0,0.00026296,2]
[421571493,1777896632000,-54.57698604,0.00027075,2]
[421571488,1777896632000,-759.87220332,0.00026837,2]
[421571503,1777896632000,-500.0,0.00027368,17]
[421571496,1777896632000,-500.0,0.00027368,17]
[421571494,1777896632000,-208.48,0.00027091,2]
[421571507,1777896632000,-500.0,0.00027368,17]
[421571495,1777896632000,-1000.0,0.00027091,2]
[421571499,1777896632000,-500.0,0.00027368,17]
[421571482,1777896632000,-1460.06,0.00025532,2]
[421571498,1777896632000,-500.0,0.00027368,17]
[421571501,1777896632000,-250.32719022,0.00027368,17]
[421571509,1777896632000,-500.0,0.00027368,17]
[421571511,1777896632000,-500.0,0.00027368,17]
[421571525,1777896632000,-500.0,0.00027368,17]
[421571527,1777896632000,-500.0,0.00027368,17]
[421571513,1777896632000,-500.0,0.00027368,17]
[421571492,1777896632000,-255.83894739,0.00027075,2]
[421571490,1777896632000,-115.51403962,0.00026837,2]
[421571478,1777896632000,-358.11,0.00022562,2]
[421571479,1777896632000,-228.75,0.00024658,2]
[421571455,1777896632000,-250.0,0.00014,2]
[421571457,1777896632000,-108.75115862,0.00014406,2]
[421571454,1777896632000,-0.63115862,0.00013096,2]
[421571458,1777896632000,-300.0,0.00016,2]
[421571459,1777896632000,-350.0,0.00018,2]
[421571461,1777896632000,-300.0,0.00018855,2]
[421571456,1777896632000,-141.24884138,0.00014406,2]
[421571460,1777896632000,-300.0,0.00018855,2]
[421571463,1777896632000,-1137.05220906,0.00018855,2]
[421571465,1777896632000,-206.23427793,0.00018856,2]
[421571462,1777896632000,-62.94779094,0.00018855,2]
[421571468,1777896632000,-607.56498033,0.00018856,2]
[421571464,1777896632000,-300.0,0.00018855,2]
[421571467,1777896632000,-382.59427793,0.00018856,2]
[421571466,1777896632000,-289.49572207,0.00018856,2]
[421571469,1777896632000,-1261.37215846,0.00018856,2]
[421571471,1777896632000,-408.66,0.00018856,2]
[421571470,1777896632000,-629.77858328,0.00018856,2]
[421571473,1777896632000,-400.0,0.0002,2]
[421571472,1777896632000,-158.25,0.00019644,2]
[421571474,1777896632000,-450.0,0.00022,2]
[421571477,1777896632000,-2483.89,0.00022562,2]
[421571475,1777896632000,-68.11512182,0.00022562,2]
[421571476,1777896632000,-359.23487818,0.00022562,2]
[421571491,1777896632000,-189.58406657,0.00027075,2]
[421571480,1777896632000,-150.0,0.00024855,2]
[421571515,1777896632000,-500.0,0.00027368,17]
[421571529,1777896632000,-500.0,0.00027368,17]
[421571521,1777896632000,-500.0,0.00027368,17]
[421571583,1777896632000,-500.0,0.00027642,2]
[421571532,1777896632000,-500.0,0.00027368,17]
[421571586,1777896632000,-500.0,0.00027642,2]
[421571587,1777896632000,-500.0,0.00027642,2]
[421571588,1777896632000,-500.0,0.00027642,2]
[421571590,1777896632000,-500.0,0.00027642,2]
[421571591,1777896632000,-500.0,0.00027642,2]
[421571589,1777896632000,-500.0,0.00027642,2]
[421571593,1777896632000,-500.0,0.00027642,2]
[421571597,1777896632000,-500.0,0.00027642,2]
[421571592,1777896632000,-500.0,0.00027642,2]
[421571584,1777896632000,-500.0,0.00027642,2]
[421571594,1777896632000,-500.0,0.00027642,2]
[421571595,1777896632000,-500.0,0.00027642,2]
[421571599,1777896632000,-500.0,0.00027642,2]
[421571596,1777896632000,-500.0,0.00027642,2]
[421571600,1777896632000,-276.55527509,0.00027642,2]
[421571601,1777896632000,-500.0,0.00027642,2]
[421571602,1777896632000,-172.37247223,0.00027642,2]
[421571603,1777896632000,-500.0,0.00027642,2]
[421571604,1777896632000,-353.30155903,0.00027642,2]
[421571605,1777896632000,-500.0,0.00027642,2]
[421571606,1777896632000,-379.59147487,0.00027642,2]
[421571607,1777896632000,-150.0,0.00027642,2]
[421571598,1777896632000,-500.0,0.00027642,2]
[421571577,1777896632000,-500.0,0.00027642,2]
[421571581,1777896632000,-500.0,0.00027642,2]
[421571585,1777896632000,-500.0,0.00027642,2]
[421571517,1777896632000,-500.0,0.00027368,17]
[421571519,1777896632000,-500.0,0.00027368,17]
[421571523,1777896632000,-500.0,0.00027368,17]
[421571538,1777896632000,-2000.0,0.00027396,30]
[421571540,1777896632000,-1500.0,0.00027397,2]
[421571536,1777896632000,-514.3099146,0.00027368,17]
[421571534,1777896632000,-506.83942771,0.00027368,17]
[421571544,1777896632000,-1500.0,0.000274,7]
[421571571,1777896632000,-500.0,0.00027642,2]
[421571546,1777896632000,-31114.3315,0.00027443,2]
[421571542,1777896632000,-300.0,0.00027397,2]
[421571551,1777896632000,-3814.57843401,0.00027543,2]
[421571561,1777896632000,-500.0,0.00027642,2]
[421571549,1777896632000,-399.70806291,0.00027543,2]
[421571575,1777896632000,-500.0,0.00027642,2]
[421571573,1777896632000,-500.0,0.00027642,2]
[421571568,1777896632000,-169.28030101,0.00027642,2]
[421571569,1777896632000,-500.0,0.00027642,2]
[421571566,1777896632000,-200.0,0.00027642,2]
[421571579,1777896632000,-500.0,0.00027642,2]
[421571557,1777896632000,-971.455,0.00027642,17]
[421571563,1777896632000,-180.5,0.00027642,17]
[421571554,1777896632000,-200.0,0.000276,10]
[421571559,1777896632000,-1060.86477171,0.00027642,15]
[421571555,1777896632000,-564.13,0.00027632,10]
[421571548,1777896632000,-166.66,0.00027449,30]
[421571611,1777896633000,-54993.723234,0.00027643,7]
[421571608,1777896633000,-150.0,0.00027642,2]
[421571610,1777896633000,-174.78781242,0.00027642,2]
[421571609,1777896633000,-150.0,0.00027642,2]
[421571619,1777896638000,-301.3293289,0.00027643,7]
[421571614,1777896638000,-16782.24196015,0.00027643,7]
[421571615,1777896638000,-20820.99609857,0.00027643,7]
[421571618,1777896638000,-380.52932165,0.00027643,7]
[421571616,1777896638000,-305.153193,0.00027643,7]
[421571617,1777896638000,-48993.48432967,0.00027643,7]
[421571621,1777896638000,-673.19152318,0.00027643,7]
[421571622,1777896638000,-2890.96426327,0.00027643,7]
[421571623,1777896638000,-2418.07525,0.00027643,7]
[421571624,1777896638000,-329.11380431,0.00027643,7]
[421571620,1777896638000,-1639.4344136,0.00027643,7]
[421571652,1777896640000,-151.0,0.00029273,7]
[421571654,1777896640000,-167.648438,0.00029273,7]
[421571649,1777896640000,-162.82,0.00029263,2]
[421571653,1777896640000,-167.648438,0.00029273,7]
[421571655,1777896640000,-167.648438,0.00029273,7]
[421571657,1777896640000,-151.0,0.00029273,7]
[421571656,1777896640000,-167.648438,0.00029273,7]
[421571650,1777896640000,-564808.2264,0.00029273,2]
[421571658,1777896640000,-225.54132,0.00029273,7]
[421571660,1777896640000,-1397.422819,0.00029273,7]
[421571662,1777896640000,-1397.422819,0.00029273,7]
[421571651,1777896640000,-151.0,0.00029273,7]
[421571647,1777896640000,-399.70806282,0.00029087,2]
[421571644,1777896640000,-151.0,0.00028267,2]
[421571646,1777896640000,-1460.06,0.00028724,2]
[421571661,1777896640000,-1397.422819,0.00029273,7]
[421571641,1777896640000,-1000.0,0.000279,10]
[421571640,1777896640000,-700.0,0.000278,10]
[421571642,1777896640000,-162.82,0.00028,2]
[421571643,1777896640000,-162.82,0.00028,2]
[421571645,1777896640000,-238.65,0.00028659,2]
[421571639,1777896640000,-500.0,0.000277,10]
[421571638,1777896640000,-205.61,0.000277,7]
[421571637,1777896640000,-7894.38,0.000277,7]
[421571635,1777896640000,-200.0,0.00027657,2]
[421571634,1777896640000,-6478.21,0.00027657,2]
[421571633,1777896640000,-657886.54910508,0.00027643,7]
[421571648,1777896640000,-3814.57843394,0.00029087,2]
[421571664,1777896640000,-341.226038,0.00029273,7]
[421571636,1777896640000,-565.49,0.000277,14]
[421571665,1777896640000,-151.0,0.00029273,7]
[421571692,1777896640000,-1879.6745625,0.00029738,2]
[421571659,1777896640000,-1397.422819,0.00029273,7]
[421571686,1777896640000,-21844.0212314,0.000297,2]
[421571691,1777896640000,-63498.5851068,0.00029738,2]
[421571687,1777896640000,-6975.1646224,0.000297,2]
[421571688,1777896640000,-309.49783373,0.0002972,2]
[421571685,1777896640000,-6617.9612889,0.000297,2]
[421571690,1777896640000,-710.9010985,0.00029738,2]
[421571684,1777896640000,-234.48636581,0.0002969,2]
[421571683,1777896640000,-326.19700018,0.00029638,2]
[421571681,1777896640000,-150.0,0.00029534,2]
[421571675,1777896640000,-151.0,0.00029273,7]
[421571676,1777896640000,-151.0,0.00029273,7]
[421571679,1777896640000,-500.0,0.00029372,7]
[421571689,1777896640000,-3077.4875788,0.00029738,2]
[421571677,1777896640000,-151.0,0.00029273,7]
[421571678,1777896640000,-151.0,0.00029273,7]
[421571666,1777896640000,-341.226038,0.00029273,7]
[421571668,1777896640000,-151.0,0.00029273,7]
[421571667,1777896640000,-151.0,0.00029273,7]
[421571663,1777896640000,-151.0,0.00029273,7]
[421571670,1777896640000,-151.0,0.00029273,7]
[421571669,1777896640000,-341.226038,0.00029273,7]
[421571672,1777896640000,-202.070096,0.00029273,7]
[421571673,1777896640000,-151.0,0.00029273,7]
[421571682,1777896640000,-776.0,0.00029552,5]
[421571674,1777896640000,-151.0,0.00029273,7]
[421571680,1777896640000,-500.0,0.00029372,7]
[421571671,1777896640000,-341.226038,0.00029273,7]
[421571734,1777896641000,-602.85351632,0.00030838,7]
[421571729,1777896641000,-3814.57843394,0.00030631,2]
[421571736,1777896641000,-500.0,0.00030838,60]
[421571728,1777896641000,-399.70806282,0.00030631,2]
[421571721,1777896641000,-162.48539177,0.00029981,2]
[421571735,1777896641000,-500.0,0.00030838,60]
[421571737,1777896641000,-500.0,0.00030838,60]
[421571727,1777896641000,-205.61,0.000305,7]
[421571723,1777896641000,-152.0,0.00030192,7]
[421571738,1777896641000,-289.6,0.00030938,60]
[421571730,1777896641000,-190.78232192,0.00030759,2]
[421571742,1777896641000,-156.0,0.00031191,30]
[421571733,1777896641000,-500.0,0.00030838,7]
[421571732,1777896641000,-264.24589981,0.00030838,60]
[421571740,1777896641000,-156.0,0.00031188,30]
[421571750,1777896641000,-156.0,0.00032188,30]
[421571739,1777896641000,-150.0,0.00031011,2]
[421571741,1777896641000,-152.0,0.00031188,30]
[421571745,1777896641000,-565.49,0.00032,14]
[421571744,1777896641000,-1460.06,0.00031915,2]
[421571751,1777896641000,-152.0,0.00032188,30]
[421571747,1777896641000,-203.0,0.00032158,30]
[421571743,1777896641000,-7894.38,0.000312,7]
[421571720,1777896641000,-160.0,0.00029981,2]
[421571746,1777896641000,-552.0,0.00032158,30]
[421571731,1777896641000,-151.0,0.00030759,2]
[421571719,1777896641000,-156.071744,0.00029738,7]
[421571710,1777896641000,-151.0,0.00029738,7]
[421571722,1777896641000,-152.0,0.00030183,7]
[421571749,1777896641000,-3814.57843394,0.00032176,2]
[421571693,1777896641000,-11787.668455,0.00029738,2]
[421571694,1777896641000,-425.7436555,0.00029738,2]
[421571695,1777896641000,-5240.0168508,0.00029738,2]
[421571696,1777896641000,-22963.1919447,0.00029738,2]
[421571698,1777896641000,-167.648438,0.00029738,7]
[421571699,1777896641000,-167.648438,0.00029738,7]
[421571697,1777896641000,-179.714701,0.00029738,7]
[421571700,1777896641000,-167.648438,0.00029738,7]
[421571701,1777896641000,-167.648438,0.00029738,7]
[421571702,1777896641000,-1397.422819,0.00029738,7]
[421571703,1777896641000,-1397.422819,0.00029738,7]
[421571704,1777896641000,-1397.422819,0.00029738,7]
[421571713,1777896641000,-341.226038,0.00029738,7]
[421571705,1777896641000,-1397.422819,0.00029738,7]
[421571706,1777896641000,-151.0,0.00029738,7]
[421571707,1777896641000,-341.226038,0.00029738,7]
[421571712,1777896641000,-151.0,0.00029738,7]
[421571711,1777896641000,-341.226038,0.00029738,7]
[421571709,1777896641000,-341.226038,0.00029738,7]
[421571708,1777896641000,-151.0,0.00029738,7]
[421571714,1777896641000,-151.0,0.00029738,7]
[421571725,1777896641000,-151.0,0.00030239,2]
[421571715,1777896641000,-151.0,0.00029738,7]
[421571718,1777896641000,-151.0,0.00029738,7]
[421571716,1777896641000,-151.0,0.00029738,7]
[421571717,1777896641000,-151.0,0.00029738,7]
[421571724,1777896641000,-152.0,0.00030201,30]
[421571748,1777896641000,-399.70806282,0.00032176,2]
[421571726,1777896641000,-166.66,0.00030339,30]
[421571753,1777896641000,-375.0,0.00032307,2]
[421571784,1777896641000,-424.8975375,0.00035096,2]
[421571781,1777896641000,-151.0,0.00035,7]
[421571779,1777896641000,-151.0,0.00035,7]
[421571789,1777896641000,-1397.422819,0.00035096,7]
[421571791,1777896641000,-1397.422819,0.00035096,7]
[421571800,1777896641000,-341.226038,0.00035096,7]
[421571798,1777896641000,-341.226038,0.00035096,7]
[421571790,1777896641000,-1397.422819,0.00035096,7]
[421571792,1777896641000,-1397.422819,0.00035096,7]
[421571793,1777896641000,-151.0,0.00035096,7]
[421571799,1777896641000,-151.0,0.00035096,7]
[421571795,1777896641000,-151.0,0.00035096,7]
[421571780,1777896641000,-151.0,0.00035,7]
[421571797,1777896641000,-151.0,0.00035096,7]
[421571794,1777896641000,-341.226038,0.00035096,7]
[421571802,1777896641000,-151.0,0.00035096,7]
[421571801,1777896641000,-151.0,0.00035096,7]
[421571803,1777896641000,-151.0,0.00035096,7]
[421571804,1777896641000,-397.61762584,0.000351,5]
[421571805,1777896641000,-1460.06,0.00035107,2]
[421571809,1777896641000,-399.70806282,0.00035264,2]
[421571806,1777896641000,-156.0,0.00035188,30]
[421571807,1777896641000,-152.0,0.00035188,30]
[421571810,1777896641000,-3814.57843394,0.00035264,2]
[421571808,1777896641000,-205.61,0.000352,7]
[421571752,1777896641000,-151.0,0.0003221,5]
[421571796,1777896641000,-341.226038,0.00035096,7]
[421571782,1777896641000,-3223.1164295,0.00035096,2]
[421571783,1777896641000,-4584.9379619,0.00035096,2]
[421571777,1777896641000,-5168.67453954,0.00035,2]
[421571763,1777896641000,-151.0,0.00032877,7]
[421571760,1777896641000,-151.0,0.00032877,7]
[421571758,1777896641000,-151.0,0.00032877,7]
[421571759,1777896641000,-151.0,0.00032877,7]
[421571756,1777896641000,-4897.37610436,0.000328,2]
[421571762,1777896641000,-151.0,0.00032877,7]
[421571761,1777896641000,-242.841462,0.00032877,7]
[421571754,1777896641000,-205.61,0.000324,7]
[421571778,1777896641000,-41261.52919403,0.00035,6]
[421571757,1777896641000,-349.13,0.00032877,2]
[421571764,1777896641000,-151.0,0.00032877,7]
[421571766,1777896641000,-151.0,0.00032877,7]
[421571774,1777896641000,-156.0,0.00034188,30]
[421571775,1777896641000,-152.0,0.00034188,30]
[421571755,1777896641000,-150.0,0.00032562,2]
[421571776,1777896641000,-565.49,0.000345,14]
[421571771,1777896641000,-399.70806282,0.0003372,2]
[421571770,1777896641000,-152.0,0.00033188,30]
[421571767,1777896641000,-219.362542,0.00032877,7]
[421571769,1777896641000,-156.0,0.00033188,30]
[421571768,1777896641000,-7894.38,0.000329,7]
[421571772,1777896641000,-3814.57843394,0.0003372,2]
[421571773,1777896641000,-151.0,0.00034182,7]
[421571786,1777896641000,-167.648438,0.00035096,7]
[421571787,1777896641000,-167.648438,0.00035096,7]
[421571785,1777896641000,-167.648438,0.00035096,7]
[421571765,1777896641000,-151.0,0.00032877,7]
[421571788,1777896641000,-167.648438,0.00035096,7]
[421571823,1777896642000,-164.0,0.00036188,30]
[421571822,1777896642000,-151.0,0.00036153,30]
[421571820,1777896642000,-500.0,0.00035616,7]
[421571818,1777896642000,-3535.0,0.00035466,2]
[421571815,1777896642000,-150.098,0.00035466,2]
[421571812,1777896642000,-204.71,0.00035466,2]
[421571825,1777896642000,-200.0,0.00036352,2]
[421571817,1777896642000,-1351.0,0.00035466,2]
[421571814,1777896642000,-194.343,0.00035466,2]
[421571813,1777896642000,-250.0,0.00035466,2]
[421571819,1777896642000,-200.0,0.00035505,2]
[421571816,1777896642000,-151.0,0.00035466,2]
[421571824,1777896642000,-152.0,0.00036188,30]
[421571811,1777896642000,-506.46,0.00035461,2]
[421571827,1777896642000,-3814.57843394,0.00036808,2]
[421571836,1777896642000,-2119.78917778,0.0003793,2]
[421571834,1777896642000,-850.70101574,0.0003793,2]
[421571832,1777896642000,-154.31,0.000379,2]
[421571833,1777896642000,-1118090.29139392,0.0003793,2]
[421571830,1777896642000,-200.0,0.000372,2]
[421571838,1777896642000,-11363.66000226,0.0003793,2]
[421571835,1777896642000,-326.19700016,0.0003596,2]
[421571828,1777896642000,-152.0,0.00037188,30]
[421571829,1777896642000,-565.49,0.000372,14]
[421571821,1777896642000,-7894.38,0.000361,7]
[421571831,1777896642000,-154.31,0.000377,2]
[421571837,1777896642000,-922.18333418,0.0003793,2]
[421571826,1777896642000,-399.70806282,0.00036808,2]
[421571861,1777896643000,-17.5132046,0.0003793,2]
[421571860,1777896643000,-275.61766254,0.0003793,2]
[421571868,1777896646000,-511.0,0.00034689,10]
[421571867,1777896646000,-10.88182952,0.00030913,6]
[421571869,1777896646000,-3821.77939578,0.0003793,2]
[421571865,1777896646000,-511.0,0.00027137,2]
[421571863,1777896646000,-427.35,0.00022562,2]
[421571866,1777896646000,-500.11817048,0.00030913,6]
[421571864,1777896646000,-189.54,0.00024658,2]
[421571870,1777896646000,-7011.29999992,0.0003793,2]
[421571884,1777897062000,616.83,9.9e-05,2]
[421571886,1777897172000,882.0,0.0002793,120]
[421571885,1777897172000,882.0,0.0002793,120]
[421571889,1777897173000,882.0,0.0002793,120]
[421571888,1777897173000,882.0,0.0002793,120]
[421571887,1777897173000,882.0,0.0002793,120]
[421571892,1777897174000,882.0,0.0002793,120]
[421571891,1777897174000,882.0,0.0002793,120]
[421571890,1777897174000,882.0,0.0002793,120]
[421571893,1777897175000,888.0,0.0002793,120]
[421571905,1777897625000,-291.0,0.00010943,2]
[421571904,1777897625000,-156.9,0.00010943,2]
[421571906,1777897636000,-1000.0,0.000114,2]
[421571907,1777897664000,-552.1,0.000114,2]
[421571908,1777897668000,-1000.0,0.000114,2]
[421571909,1777897672000,-948.81551489,0.000114,2]
[421571910,1777897672000,-51.18448511,0.000114,2]
[421571911,1777897676000,-245.81551489,0.000114,2]
[421571913,1777897749000,-203.30786408,0.00012037,2]
[421571914,1777897749000,-275.11185153,0.00013241,2]
[421571916,1777897749000,-500.0,0.00014999,2]
[421571915,1777897749000,-250.0,0.00014,2]
[421571917,1777897749000,-183.67145613,0.00014999,2]
[421571918,1777897749000,-500.0,0.00014999,2]
[421571919,1777897749000,-174.55366114,0.00014999,2]
[421571922,1777897749000,-500.0,0.00014999,2]
[421571920,1777897749000,-552.01402871,0.00014999,2]
[421571923,1777897749000,-500.0,0.00014999,2]
[421571925,1777897749000,-207.35099909,0.00014999,2]
[421571924,1777897749000,-500.0,0.00014999,2]
[421571926,1777897749000,-500.0,0.00014999,2]
[421571927,1777897749000,-353.01762868,0.00014999,2]
[421571921,1777897749000,-500.0,0.00014999,2]
[421571928,1777897791000,-309.56342621,0.000149,2]
[421571930,1777897791000,-500.0,0.00014999,2]
[421571929,1777897791000,-146.98237132,0.00014999,2]
[421571931,1777897791000,-577.65552751,0.00014999,2]
[421571932,1777897791000,-500.0,0.00014999,2]
[421571933,1777897791000,-500.0,0.00014999,2]
[421571935,1777897791000,-150.0,0.00014999,2]
[421571936,1777897791000,-500.0,0.00014999,2]
[421571938,1777897791000,-495.4665729,0.00014999,2]
[421571937,1777897791000,-170.2906039,0.00014999,2]
[421571939,1777897791000,-500.0,0.00014999,2]
[421571940,1777897791000,-500.0,0.00014999,2]
[421571941,1777897791000,-262.24253712,0.00014999,2]
[421571942,1777897791000,-44737.79896104,0.00015,2]
[421571934,1777897791000,-150.0,0.00014999,2]
[421571946,1777897832000,-3006.56260441,0.000149,2]
[421571947,1777897832000,-926.37772552,0.000149,2]
[421571948,1777897832000,-1200.0,0.00014999,2]
[421571950,1777897832000,-150.0,0.00014999,2]
[421571949,1777897832000,-300.0,0.00014999,2]
[421571952,1777897832000,-50000.0,0.00015,2]
[421571951,1777897832000,-963313.82503703,0.00015,2]
[421571967,1777897838000,-2222669.18195764,0.00015,2]
[421571970,1777897838000,-2749.91851468,0.00015,2]
[421571965,1777897838000,-214.12862809,0.00015,2]
[421571968,1777897838000,-47963.41993777,0.00015,2]
[421571964,1777897838000,-167.76137191,0.000149,2]
[421571969,1777897838000,-380.52932165,0.00015,2]
[421571966,1777897838000,-1682.20121288,0.00015,2]
[421571975,1777897841000,-1526.86,0.00015,2]
[421571982,1777897841000,-1141.47131779,0.00015,2]
[421571980,1777897841000,-5440.64917187,0.00015,2]
[421571981,1777897841000,-906.56824085,0.00015,2]
[421571989,1777897841000,-946.05260061,0.00015,2]
[421571983,1777897841000,-333.11073639,0.00015,2]
[421571990,1777897841000,-343.78036338,0.00015,2]
[421571991,1777897841000,-5690.12868733,0.00015,2]
[421571997,1777897841000,-309.56342621,0.00016264,2]
[421571992,1777897841000,-928178.4387735,0.00015,2]
[421571995,1777897841000,-6672.86418588,0.000159,2]
[421571996,1777897841000,-300.0,0.00016,2]
[421571994,1777897841000,-152.0,0.00015253,7]
[421571998,1777897841000,-156.9,0.00016414,2]
[421572001,1777897841000,-1163.0,0.00016499,2]